bitfinex-derivatives/quotes_BTCF0:USTF0_20251210
["timestamp","ask_amount","ask_price","bid_price","bid_amount"]
[1765358564639,0.0700725,92573.0,92572.0,0.03453308]
[1765358564940,0.0700725,92573.0,92572.0,0.06213308]
[1765358565329,0.0700725,92573.0,92572.0,0.07419308]
[1765358565932,0.0700725,92573.0,92572.0,0.06213308]
[1765358568141,0.0680733,92566.0,92565.0,1e-08]
[1765358568340,0.068075,92551.0,92550.0,0.05515152]
[1765358568539,0.068075,92551.0,92550.0,0.42515152]
[1765358568731,0.068075,92551.0,92550.0,0.37012152]
[1765358569126,0.068075,92551.0,92550.0,0.42515152]
[1765358569331,0.068075,92551.0,92550.0,0.42615152]
[1765358569332,0.069075,92551.0,92550.0,0.42615152]
[1765358569843,0.071075,92551.0,92550.0,0.45165152]
[1765358570227,0.070075,92551.0,92550.0,0.44965152]
[1765358571037,0.070075,92551.0,92550.0,0.44865152]
[1765358576748,0.002,92551.0,92550.0,0.45945662]
[1765358576934,0.00016203,92560.0,92559.0,0.05715]
[1765358577129,0.00016203,92560.0,92559.0,0.48715]
[1765358577742,0.00016203,92560.0,92559.0,0.56715]
[1765358578135,0.00116203,92560.0,92559.0,0.56715]
[1765358578546,0.00216203,92560.0,92559.0,0.56715]
[1765358579339,0.05972203,92560.0,92559.0,0.05715]
[1765358579532,0.0108041,92559.0,92550.0,0.01762152]
[1765358579737,0.068365,92551.0,92550.0,0.41727152]
[1765358580936,0.068365,92551.0,92550.0,0.43459152]
[1765358581137,0.068365,92551.0,92550.0,0.43659152]
[1765358581336,0.069365,92551.0,92550.0,0.43659152]
[1765358581747,0.069365,92551.0,92550.0,0.41927152]
[1765358583042,0.070365,92551.0,92550.0,0.41827152]
[1765358584349,0.012805,92551.0,92550.0,0.43559152]
[1765358586052,0.070365,92551.0,92550.0,0.41827152]
[1765358589655,0.430365,92551.0,92550.0,0.02986152]
[1765358589852,0.070365,92551.0,92550.0,0.02986152]
[1765358590152,0.070365,92551.0,92550.0,0.05777152]
[1765358590758,0.012805,92551.0,92550.0,0.46575152]
[1765358591140,0.002,92551.0,92550.0,0.54575152]
[1765358591539,0.00016203,92560.0,92559.0,0.05628]
[1765358591751,0.00016203,92560.0,92559.0,0.4670841]
[1765358592153,0.00016203,92560.0,92559.0,0.4170841]
[1765358592644,0.00116203,92560.0,92559.0,0.4180841]
[1765358593050,0.05762203,92560.0,92559.0,0.40728]
[1765358593250,0.05762203,92560.0,92559.0,0.05728]
[1765358594160,0.05862203,92560.0,92559.0,0.05728]
[1765358596973,0.05862203,92560.0,92559.0,0.001]
[1765358597771,0.05862203,92560.0,92559.0,0.02937]
[1765358598273,0.05862203,92560.0,92559.0,0.05728]
[1765358603681,0.05862203,92560.0,92559.0,0.001]
[1765358604174,0.05862203,92560.0,92559.0,0.02826]
[1765358604366,0.42862203,92560.0,92559.0,0.02826]
[1765358604766,0.42862203,92560.0,92559.0,0.001]
[1765358604964,0.42862203,92560.0,92559.0,0.0562]
[1765358605574,0.13862203,92560.0,92559.0,0.0562]
[1765358606077,0.05862203,92560.0,92559.0,0.0562]
[1765358606974,0.05862203,92560.0,92559.0,0.001]
[1765358607477,0.05862203,92560.0,92559.0,0.02826]
[1765358607676,0.05862203,92560.0,92559.0,0.001]
[1765358607677,0.47862203,92560.0,92559.0,0.001]
[1765358607981,0.068035,92551.0,92550.0,0.00012152]
[1765358608173,0.0680362,92541.0,92540.0,0.05628062]
[1765358608377,0.2680362,92541.0,92540.0,0.05628062]
[1765358609081,0.26815772,92541.0,92540.0,0.05628062]
[1765358609475,0.26915772,92541.0,92540.0,0.05628062]
[1765358609873,0.06608,92526.0,92525.0,0.0776429]
[1765358610074,0.05723,92516.0,92515.0,0.05628091]
[1765358610282,0.05735152,92516.0,92515.0,0.05628091]
[1765358611580,0.05835152,92516.0,92515.0,0.05628091]
[1765358612684,0.06035152,92516.0,92515.0,0.05628091]
[1765358613582,0.06035152,92516.0,92515.0,0.00108091]
[1765358614582,0.06035152,92516.0,92515.0,0.02834091]
[1765358614982,0.06035152,92516.0,92515.0,0.05628091]
[1765358617087,0.49035152,92516.0,92515.0,0.05628091]
[1765358617483,0.49035152,92516.0,92515.0,0.02834091]
[1765358617688,0.49035152,92516.0,92515.0,0.00108091]
[1765358617989,0.17035152,92516.0,92515.0,0.00108091]
[1765358620085,0.42035152,92516.0,92515.0,0.00108091]
[1765358622494,0.06035152,92516.0,92515.0,0.05628091]
[1765358623086,0.43035152,92516.0,92515.0,0.00108091]
[1765358624899,0.4787474,92516.0,92515.0,0.00108091]
[1765358625099,0.43035152,92516.0,92515.0,0.00108091]
[1765358625296,0.0680399,92509.0,92508.0,0.05]
[1765358625493,0.0680399,92509.0,92508.0,0.07726]
[1765358626192,0.4280399,92509.0,92508.0,0.05]
[1765358626498,0.42911857,92509.0,92508.0,0.05]
[1765358627484,0.43011857,92509.0,92508.0,0.051]
[1765358631496,0.43011857,92509.0,92508.0,0.07826]
[1765358631696,0.43011857,92509.0,92508.0,0.1062]
[1765358632503,0.00207867,92509.0,92508.0,0.12259]
[1765358632799,0.1132,92514.0,92508.0,0.55259]
[1765358633004,0.1132,92514.0,92513.0,0.05957]
[1765358633308,0.1132,92514.0,92513.0,0.0703795]
[1765358634008,0.11324285,92514.0,92513.0,0.0703795]
[1765358635004,0.11424285,92514.0,92513.0,0.0703795]
[1765358635206,0.11524285,92514.0,92513.0,0.5013795]
[1765358635599,0.11424285,92514.0,92513.0,0.5013795]
[1765358635904,0.11524285,92514.0,92513.0,0.5033795]
[1765358636106,0.11524285,92514.0,92513.0,0.5933795]
[1765358636604,0.00204285,92514.0,92513.0,0.5933795]
[1765358637200,0.010808,92526.0,92525.0,0.0684781]
[1765358638091,0.02985,92529.0,92528.0,0.0684776]
[1765358638903,0.0406573,92532.0,92531.0,0.05767]
[1765358639107,0.0686573,92532.0,92531.0,0.05767]
[1765358639406,0.05785,92532.0,92531.0,0.0684774]
[1765358639803,0.02985,92532.0,92531.0,0.0684774]
[1765358640107,0.04081893,92535.0,92534.0,0.068477]
[1765358640307,0.06881893,92535.0,92534.0,0.068477]
[1765358641107,0.06881893,92535.0,92534.0,0.05767]
[1765358641698,0.07781893,92535.0,92534.0,0.05867]
[1765358642401,0.06701203,92535.0,92534.0,0.05867]
[1765358642591,0.04401203,92535.0,92534.0,0.46967]
[1765358642797,0.01416203,92535.0,92534.0,0.46967]
[1765358644212,0.01416203,92535.0,92534.0,0.55967]
[1765358644905,0.0108059,92544.0,92543.0,0.05767]
[1765358645298,0.0108059,92544.0,92543.0,0.068476]
[1765358646000,0.0178059,92544.0,92543.0,0.068476]
[1765358646303,0.0476559,92544.0,92543.0,0.069476]
[1765358646504,0.0586559,92544.0,92543.0,0.069476]
[1765358647693,0.018,92544.0,92543.0,0.069476]
[1765358647898,0.015,92544.0,92543.0,0.070476]
[1765358648306,0.004,92544.0,92543.0,0.069476]
[1765358648510,0.008,92544.0,92543.0,0.070476]
[1765358648905,0.03785,92544.0,92543.0,0.070476]
[1765358649104,0.008,92544.0,92543.0,0.070476]
[1765358652416,0.03785,92544.0,92543.0,0.070476]
[1765358652612,0.06585,92544.0,92543.0,0.070476]
[1765358660014,0.0766558,92544.0,92543.0,0.070476]
[1765358661523,0.0766558,92544.0,92543.0,0.05967]
[1765358663915,0.3366558,92544.0,92543.0,0.002]
[1765358664416,0.05467,92530.0,92529.0,0.05589]
[1765358664616,0.05467,92530.0,92529.0,0.43589]
[1765358665527,0.05567,92530.0,92529.0,0.43689]
[1765358666128,0.05767,92530.0,92529.0,0.43789]
[1765358669036,0.05767,92530.0,92529.0,0.20789]
[1765358671832,0.46471,92530.0,92529.0,0.02936]
[1765358672033,0.26471,92530.0,92529.0,0.02936]
[1765358672232,0.26471,92530.0,92529.0,0.05789]
[1765358672732,0.05767,92530.0,92529.0,0.05789]
[1765358674539,0.05767,92530.0,92529.0,0.02936]
[1765358674540,0.07471,92530.0,92529.0,0.02936]
[1765358674843,0.18471,92530.0,92529.0,0.02936]
[1765358675043,0.18471,92530.0,92529.0,0.05789]
[1765358676038,0.07471,92530.0,92529.0,0.05789]
[1765358676240,0.44471,92530.0,92529.0,0.02936]
[1765358676443,0.44471,92530.0,92529.0,0.002]
[1765358677930,0.18471,92530.0,92529.0,0.002]
[1765358678134,0.18471,92530.0,92529.0,0.02936]
[1765358678545,0.18471,92530.0,92529.0,0.05789]
[1765358679143,0.49471,92530.0,92529.0,0.02936]
[1765358680045,0.49471,92530.0,92529.0,0.002]
[1765358680555,0.05467,92526.0,92525.0,0.05605212]
[1765358680856,0.0654779,92526.0,92525.0,0.05605212]
[1765358681656,0.0664779,92526.0,92525.0,0.06405212]
[1765358682249,0.0674779,92526.0,92525.0,0.06905212]
[1765358688161,0.09217439,92526.0,92525.0,0.06905212]
[1765358690052,0.0921596,92526.0,92525.0,0.06905212]
[1765358693570,0.0674779,92526.0,92525.0,0.06905212]
[1765358695471,0.0674779,92526.0,92525.0,0.06898212]
[1765358700566,0.0398379,92526.0,92525.0,0.06898212]
[1765358700763,0.0696879,92526.0,92525.0,0.06898212]
[1765358701163,0.0944199,92526.0,92525.0,0.06898212]
[1765358704880,0.0375399,92526.0,92525.0,0.48898212]
[1765358705176,0.002,92526.0,92525.0,0.48898212]
[1765358706474,0.05921,92526.0,92525.0,0.48898212]
[1765358709582,0.002,92526.0,92525.0,0.48898212]
[1765358714385,0.0108077,92528.0,92526.0,0.0108079]
[1765358714581,0.02989,92535.0,92532.0,0.01376]
[1765358714782,0.07033692,92540.0,92539.0,0.05646]
[1765358715085,0.01188692,92540.0,92539.0,0.46646]
[1765358716672,0.01588692,92540.0,92539.0,0.46746]
[1765358716872,0.01988692,92540.0,92539.0,0.46846]
[1765358717586,0.00908062,92540.0,92539.0,0.46846]
[1765358721992,0.06706062,92540.0,92539.0,0.46846]
[1765358722379,0.00908062,92540.0,92539.0,0.46846]
[1765358729412,0.00908062,92540.0,92539.0,0.54846]
[1765358730414,0.0108052,92550.0,92549.0,0.05632]
[1765358730597,0.00016212,92553.0,92552.0,0.07362]
[1765358730798,0.00016212,92553.0,92552.0,0.5644249]
[1765358732312,0.01216212,92553.0,92552.0,0.5664249]
[1765358732810,0.00287332,92553.0,92552.0,0.5654249]
[1765358733010,0.0108037,92563.0,92562.0,0.0671237]
[1765358733212,0.0108037,92563.0,92562.0,0.4571237]
[1765358733712,0.00108033,92565.0,92564.0,0.07362]
[1765358734016,0.00108033,92565.0,92564.0,0.47362]
[1765358735006,0.00508033,92565.0,92564.0,0.47462]
[1765358735418,0.00508033,92565.0,92564.0,0.56462]
[1765358735806,0.00508033,92565.0,92564.0,0.57548324]
[1765358736010,0.00708033,92565.0,92564.0,0.57548324]
[1765358747824,0.00708033,92565.0,92564.0,0.48548324]
[1765358748020,0.06506033,92565.0,92564.0,0.46818324]
[1765358748422,0.06506033,92565.0,92564.0,0.48548324]
[1765358755025,0.06506033,92565.0,92564.0,0.05732]
[1765358756516,0.06506033,92565.0,92564.0,0.02929]
[1765358757128,0.06506033,92565.0,92564.0,0.05668]
[1765358764128,0.06506033,92565.0,92564.0,0.001]
[1765358764325,0.0675147,92554.0,92553.0,0.05703212]
[1765358764537,0.0675147,92554.0,92553.0,0.00016212]
[1765358764737,0.0675147,92554.0,92553.0,0.02964212]
[1765358765128,0.0675147,92554.0,92553.0,0.05703212]
[1765358765638,0.0685147,92554.0,92553.0,0.05803212]
[1765358766547,0.0685147,92554.0,92553.0,0.06003212]
[1765358771137,0.3485147,92554.0,92553.0,0.00316212]
[1765358772249,0.0683267,92537.0,92536.0,0.07218]
[1765358772437,0.0683267,92537.0,92536.0,0.53218]
[1765358772638,0.0683267,92537.0,92536.0,0.54307402]
[1765358773540,0.0693267,92537.0,92536.0,0.55607402]
[1765358773747,0.0703267,92537.0,92536.0,0.56307402]
[1765358776348,0.0703267,92537.0,92536.0,0.55218]
[1765358777351,0.0703267,92537.0,92536.0,0.56280421]
[1765358777747,0.0703267,92537.0,92536.0,0.55218]
[1765358778945,0.0703267,92537.0,92536.0,0.56328082]
[1765358779354,0.0703267,92537.0,92536.0,0.55218]
[1765358795464,0.0703267,92537.0,92536.0,0.32218]
[1765358795866,0.0703267,92537.0,92536.0,0.49218]
[1765358802972,0.0128067,92537.0,92536.0,0.49218]
[1765358803158,0.002,92537.0,92536.0,0.49218]
[1765358806775,0.002,92537.0,92536.0,0.56954944]
[1765358806977,0.00016212,92546.0,92545.0,0.05562]
[1765358807166,0.0108048,92554.0,92553.0,0.0717]
[1765358807367,0.0108043,92558.0,92557.0,0.05562]
[1765358807662,0.0108043,92558.0,92557.0,0.44562]
[1765358807871,0.0108038,92562.0,92561.0,0.05562]
[1765358808066,0.0108038,92562.0,92561.0,0.27562]
[1765358809774,0.0118038,92562.0,92561.0,0.27562]
[1765358809977,0.0148038,92562.0,92561.0,0.27662]
[1765358811876,0.0419538,92562.0,92561.0,0.27662]
[1765358812980,0.0148038,92562.0,92561.0,0.27662]
[1765358814384,0.0018807,92562.0,92561.0,0.36662]
[1765358814582,0.00016212,92571.0,92570.0,0.0691628]
[1765358814879,0.00016212,92571.0,92570.0,0.4591628]
[1765358815283,0.00016212,92571.0,92570.0,0.5491628]
[1765358815666,0.00316212,92571.0,92570.0,0.5491628]
[1765358817277,0.00716212,92571.0,92570.0,0.5501628]
[1765358817479,0.00416212,92571.0,92570.0,0.5501628]
[1765358817779,0.00416212,92571.0,92570.0,0.5531628]
[1765358817984,0.00116212,92571.0,92570.0,0.5541628]
[1765358818585,0.0108014,92582.0,92581.0,0.0691615]
[1765358818782,0.0108014,92582.0,92581.0,0.4391615]
[1765358820085,0.0670914,92582.0,92581.0,0.4391615]
[1765358820582,0.0680914,92582.0,92581.0,0.4401615]
[1765358823985,0.0680914,92582.0,92581.0,0.05936]
[1765358824185,0.0680914,92582.0,92581.0,0.03087]
[1765358824186,0.4480914,92582.0,92581.0,0.03087]
[1765358824387,0.8480914,92582.0,92572.0,0.00016203]
[1765358824583,0.0670925,92573.0,92572.0,0.00016203]
[1765358824783,0.2770925,92573.0,92572.0,0.00016203]
[1765358826791,0.0670925,92573.0,92572.0,0.05852203]
[1765358827283,0.0710925,92573.0,92572.0,0.03103203]
[1765358827994,0.0700925,92573.0,92572.0,0.03103203]
[1765358828184,0.0710925,92573.0,92572.0,0.03103203]
[1765358829095,0.0680925,92573.0,92572.0,0.03003203]
[1765358829295,0.0700925,92573.0,92572.0,0.03103203]
[1765358835205,0.0700925,92573.0,92572.0,0.06070203]
[1765358837206,0.0677439,92562.0,92561.0,0.0108038]
[1765358837406,0.0677437,92562.0,92561.0,0.07857]
[1765358838314,0.0677437,92562.0,92561.0,0.08057]
[1765358838612,0.0677437,92562.0,92561.0,0.08157]
[1765358838813,0.0677437,92562.0,92561.0,0.47157]
[1765358839210,0.0677437,92562.0,92561.0,0.4813739]
[1765358839411,0.0687437,92562.0,92561.0,0.4813739]
[1765358839712,0.0687437,92562.0,92561.0,0.2113739]
[1765358841011,0.0687437,92562.0,92561.0,0.2093739]
[1765358841410,0.0677437,92562.0,92561.0,0.2093739]
[1765358841612,0.0687437,92562.0,92561.0,0.2093739]
[1765358841824,0.0687437,92562.0,92561.0,0.2103739]
[1765358842113,0.0687437,92562.0,92561.0,0.4403739]
[1765358844012,0.0687437,92562.0,92561.0,0.2203739]
[1765358844818,0.0687437,92562.0,92561.0,0.0803739]
[1765358845019,0.0687437,92562.0,92561.0,0.4703739]
[1765358852917,0.0687437,92562.0,92561.0,0.2403739]
[1765358853523,0.0409737,92562.0,92561.0,0.2403739]
[1765358853827,0.0118037,92562.0,92561.0,0.4403739]
[1765358854125,0.0408137,92562.0,92561.0,0.4403739]
[1765358857629,0.0678137,92562.0,92561.0,0.4403739]
[1765358861132,0.0118037,92562.0,92561.0,0.4403739]
[1765358861328,0.0408137,92562.0,92561.0,0.4403739]
[1765358861535,0.0678137,92562.0,92561.0,0.4403739]
[1765358863641,0.09202968,92562.0,92561.0,0.4403739]
[1765358864128,0.08122598,92562.0,92561.0,0.4403739]
[1765358867935,0.05422598,92562.0,92561.0,0.4403739]
[1765358869237,0.08122598,92562.0,92561.0,0.4403739]
[1765358873641,0.05701,92562.0,92561.0,0.4403739]
[1765358877537,0.05701,92562.0,92561.0,0.2403739]
[1765358878038,0.05701,92562.0,92561.0,0.06957]
[1765358878941,0.07343,92562.0,92561.0,0.06957]
[1765358879247,0.49343,92562.0,92561.0,0.001]
[1765358879445,0.49343,92562.0,92561.0,0.02885]
[1765358879744,0.49343,92562.0,92561.0,0.05645]
[1765358880148,0.5176144,92562.0,92561.0,0.05645]
[1765358882548,0.2576144,92562.0,92561.0,0.05645]
[1765358883849,0.23343,92562.0,92561.0,0.05645]
[1765358889553,0.45343,92562.0,92561.0,0.05645]
[1765358889947,0.45343,92562.0,92561.0,0.001]
[1765358890254,0.0846148,92553.0,92552.0,0.05561203]
[1765358890454,0.0846148,92553.0,92552.0,0.15561203]
[1765358891357,0.0846148,92553.0,92552.0,0.43661203]
[1765358891752,0.0691248,92553.0,92552.0,0.43661203]
[1765358892149,0.0701248,92553.0,92552.0,0.43861203]
[1765358892656,0.0701248,92553.0,92552.0,0.43561203]
[1765358892958,0.0701248,92553.0,92552.0,0.43661203]
[1765358893161,0.0701248,92553.0,92552.0,0.18661203]
[1765358893361,0.0878248,92553.0,92552.0,0.05661203]
[1765358893654,0.4778248,92553.0,92552.0,0.02901203]
[1765358894249,0.4778248,92553.0,92552.0,0.05790203]
[1765358894459,0.4778248,92553.0,92552.0,0.02901203]
[1765358895456,0.0978248,92553.0,92552.0,0.05790203]
[1765358895762,0.0878248,92553.0,92552.0,0.05790203]
[1765358898760,0.5078248,92553.0,92552.0,0.00116203]
[1765358899355,0.5078248,92553.0,92552.0,0.02834203]
[1765358900363,0.5078248,92553.0,92552.0,0.05723203]
[1765358900862,0.1178248,92553.0,92552.0,0.05723203]
[1765358904067,0.1001248,92553.0,92552.0,0.05723203]
[1765358904266,0.0118048,92553.0,92552.0,0.41723203]
[1765358904966,0.0673648,92553.0,92552.0,0.41723203]
[1765358911874,0.0673648,92553.0,92552.0,0.42803693]
[1765358913075,0.0118048,92553.0,92552.0,0.42803693]
[1765358913476,0.0673648,92553.0,92552.0,0.42803693]
[1765358915576,0.0402848,92553.0,92552.0,0.42803693]
[1765358919372,0.0118048,92553.0,92552.0,0.42803693]
[1765358919574,0.0673648,92553.0,92552.0,0.28723203]
[1765358927188,0.0673648,92553.0,92552.0,0.05723203]
[1765358931990,0.0118048,92553.0,92552.0,0.47723203]
[1765358933692,0.001,92553.0,92552.0,0.47723203]
[1765358935291,0.05794,92553.0,92552.0,0.47723203]
[1765358939096,0.001,92553.0,92552.0,0.47723203]
[1765358941103,0.001,92553.0,92552.0,0.56723203]
[1765358943298,0.0687448,92553.0,92552.0,0.05723203]
[1765358943601,0.0687448,92553.0,92552.0,0.07723203]
[1765358945003,0.0687448,92553.0,92552.0,0.05723203]
[1765358946604,0.0687448,92553.0,92552.0,0.07021203]
[1765358946904,0.0395448,92553.0,92552.0,0.46021203]
[1765358947105,0.0118048,92553.0,92552.0,0.46021203]
[1765358947800,0.001,92553.0,92552.0,0.55021203]
[1765358954011,0.02837,92553.0,92552.0,0.55021203]
[1765358954198,0.001,92553.0,92552.0,0.55021203]
[1765358957310,0.02837,92553.0,92552.0,0.55021203]
[1765358957612,0.001,92553.0,92552.0,0.55021203]
[1765358959502,0.02837,92553.0,92552.0,0.55021203]
[1765358960206,0.001,92553.0,92552.0,0.55021203]
[1765358964210,0.02843,92553.0,92552.0,0.55021203]
[1765358964400,0.05646,92553.0,92552.0,0.55021203]
[1765358964604,0.001,92553.0,92552.0,0.55021203]
[1765358965317,0.02843,92553.0,92552.0,0.55021203]
[1765358965615,0.05646,92553.0,92552.0,0.55021203]
[1765358966718,0.001,92553.0,92552.0,0.55021203]
[1765358979224,0.001,92553.0,92552.0,0.62802961]
[1765358979429,0.001,92553.0,92552.0,0.55021203]
[1765358981116,0.001,92553.0,92552.0,0.62802267]
[1765358986231,0.02843,92553.0,92552.0,0.62802267]
[1765358986429,0.05646,92553.0,92552.0,0.46021203]
[1765358986933,0.05646,92553.0,92552.0,0.37021203]
[1765358990936,0.02843,92553.0,92552.0,0.37021203]
[1765358992837,0.05646,92553.0,92552.0,0.37021203]
[1765358994532,0.07118,92553.0,92552.0,0.05723203]
[1765358994728,0.0952037,92553.0,92552.0,0.05723203]
[1765358995042,0.0952037,92553.0,92540.0,0.00108062]
[1765358995043,0.0858362,92541.0,92540.0,0.05943062]
[1765358995342,0.1098599,92541.0,92540.0,0.05943062]
[1765358996126,0.1108599,92541.0,92540.0,0.06743062]
[1765358996529,0.1118599,92541.0,92540.0,0.07843062]
[1765358997130,0.16133308,92541.0,92540.0,0.04891062]
[1765358997844,0.16133308,92541.0,92540.0,0.07843062]
[1765358998042,0.1118599,92541.0,92540.0,0.07843062]
[1765358999135,0.0942999,92541.0,92540.0,0.07843062]
[1765359000436,0.05947,92541.0,92540.0,0.07843062]
[1765359002047,0.08342704,92541.0,92540.0,0.07843062]
[1765359002240,0.05947,92541.0,92540.0,0.07843062]
[1765359006634,0.05947,92541.0,92540.0,0.08826062]
[1765359006848,0.002,92541.0,92540.0,0.45826062]
[1765359007232,0.002,92541.0,92540.0,0.54826062]
[1765359009343,0.05947,92541.0,92540.0,0.45826062]
[1765359010056,0.02983,92541.0,92540.0,0.45826062]
[1765359010548,0.05947,92541.0,92540.0,0.45826062]
[1765359011250,0.05947,92541.0,92540.0,0.43843062]
[1765359011749,0.05947,92541.0,92540.0,0.45638062]
[1765359015658,0.0702762,92541.0,92540.0,0.45638062]
[1765359015858,0.0416362,92541.0,92540.0,0.45638062]
[1765359016156,0.03083,92541.0,92540.0,0.45638062]
[1765359016357,0.002,92541.0,92540.0,0.45638062]
[1765359017155,0.002,92541.0,92540.0,0.54638062]
[1765359017462,0.00016203,92550.0,92549.0,0.0689753]
[1765359017662,0.00016203,92550.0,92549.0,0.5089753]
[1765359018855,0.0678027,92571.0,92570.0,0.05817]
[1765359020045,0.0708027,92571.0,92570.0,0.05917]
[1765359020245,0.06,92571.0,92570.0,0.05917]
[1765359020457,0.003,92571.0,92570.0,0.45757984]
[1765359020765,0.006,92571.0,92570.0,0.45757984]
[1765359021257,0.006,92571.0,92570.0,0.51757984]
[1765359027368,0.06247,92571.0,92570.0,0.51757984]
[1765359027867,0.03533,92571.0,92570.0,0.51757984]
[1765359028364,0.006,92571.0,92570.0,0.51757984]
[1765359029462,0.0058379,92571.0,92570.0,0.51757984]
[1765359030561,0.00016203,92580.0,92579.0,0.05902]
[1765359030771,0.0672707,92588.0,92587.0,0.0698206]
[1765359031170,0.0672707,92588.0,92587.0,0.4698206]
[1765359032665,0.0847707,92588.0,92587.0,0.0898206]
[1765359032865,0.0887707,92588.0,92587.0,0.0898206]
[1765359033064,0.0887707,92588.0,92587.0,0.0908206]
[1765359033272,0.0937707,92588.0,92587.0,0.0908206]
[1765359033975,0.06547,92588.0,92587.0,0.0708206]
[1765359034275,0.009,92588.0,92587.0,0.4908206]
[1765359034474,0.03833,92588.0,92587.0,0.4908206]
[1765359034664,0.06547,92588.0,92587.0,0.4908206]
[1765359035176,0.009,92588.0,92587.0,0.4908206]
[1765359035978,0.03833,92588.0,92587.0,0.4908206]
[1765359036171,0.009,92588.0,92587.0,0.4908206]
[1765359036374,0.02933,92588.0,92587.0,0.4898206]
[1765359036571,0.03033,92588.0,92587.0,0.4908206]
[1765359036875,0.05747,92588.0,92587.0,0.4908206]
[1765359039381,0.03033,92588.0,92587.0,0.4908206]
[1765359040176,0.001,92588.0,92587.0,0.4908206]
[1765359042280,0.001,92588.0,92587.0,0.5808206]
[1765359046283,0.02495431,92588.0,92587.0,0.5808206]
[1765359053690,0.001,92588.0,92587.0,0.5808206]
[1765359060595,0.00108004,92590.0,92589.0,0.07532]
[1765359060902,0.00016203,92597.0,92596.0,0.0683898]
[1765359061203,0.06958734,92615.0,92614.0,0.0683877]
[1765359061400,0.09342166,92615.0,92614.0,0.0683877]
[1765359062302,0.09342166,92615.0,92614.0,0.05759]
[1765359062902,0.09942166,92615.0,92614.0,0.05859]
[1765359063405,0.10442166,92615.0,92614.0,0.05859]
[1765359067605,0.51442166,92615.0,92614.0,0.05859]
[1765359073814,0.30442166,92615.0,92614.0,0.05859]
[1765359074206,0.10442166,92615.0,92614.0,0.05859]
[1765359084026,0.10442166,92615.0,92614.0,0.0693877]
[1765359093232,0.10442166,92615.0,92614.0,0.05859]
[1765359093733,0.16241835,92615.0,92614.0,0.05859]
[1765359094233,0.16241835,92615.0,92614.0,0.0693877]
[1765359094733,0.16241835,92615.0,92614.0,0.05859]
[1765359095230,0.16241835,92615.0,92614.0,0.0693877]
[1765359097635,0.16241835,92615.0,92614.0,0.05859]
[1765359103135,0.16241835,92615.0,92614.0,0.001]
[1765359103335,0.58241835,92615.0,92614.0,0.001]
[1765359103543,0.52442166,92615.0,92614.0,0.001]
[1765359111244,0.52442166,92615.0,92605.0,0.00016203]
[1765359111245,0.0833085,92607.0,92606.0,0.05834004]
[1765359111448,0.05733,92606.0,92605.0,0.00016203]
[1765359111743,0.51116432,92606.0,92605.0,0.00016203]
[1765359113148,0.51416432,92606.0,92605.0,0.00016203]
[1765359113450,0.05709,92587.0,92586.0,0.0670409]
[1765359113746,0.0678908,92587.0,92586.0,0.1644806]
[1765359114150,0.0678908,92587.0,92586.0,0.0870409]
[1765359114858,0.0688908,92587.0,92586.0,0.0870409]
[1765359115147,0.0688908,92587.0,92586.0,0.0880409]
[1765359115351,0.0688908,92587.0,92586.0,0.07724]
[1765359117143,0.0688908,92587.0,92586.0,0.05724]
[1765359117740,0.4488908,92587.0,92586.0,0.001]
[1765359118448,0.0678919,92578.0,92577.0,0.05640203]
[1765359119846,0.0678919,92578.0,92577.0,0.05940203]
[1765359120653,0.0678919,92578.0,92577.0,0.06040203]
[1765359121254,0.01768203,92596.0,92580.0,0.0287016]
[1765359121450,0.15419663,92590.0,92589.0,0.05624]
[1765359121757,0.0678905,92590.0,92589.0,0.05624]
[1765359123556,0.0698905,92590.0,92589.0,0.05624]
[1765359124355,0.05909,92590.0,92589.0,0.05624]
[1765359124662,0.05909,92590.0,92589.0,0.41624]
[1765359128857,0.03137,92590.0,92589.0,0.41624]
[1765359131465,0.05901,92590.0,92589.0,0.41624]
[1765359138370,0.0698105,92590.0,92589.0,0.41624]
[1765359139668,0.0128005,92590.0,92589.0,0.41624]
[1765359140266,0.002,92590.0,92589.0,0.41624]
[1765359143173,0.02972,92590.0,92589.0,0.41624]
[1765359143767,0.05947,92590.0,92589.0,0.41624]
[1765359144074,0.05947,92590.0,92589.0,0.06624]
[1765359145275,0.02972,92590.0,92589.0,0.43624]
[1765359145476,0.05947,92590.0,92589.0,0.43624]
[1765359146066,0.02972,92590.0,92589.0,0.43624]
[1765359146275,0.002,92590.0,92589.0,0.43624]
[1765359146470,0.002,92590.0,92589.0,0.52624]
[1765359147779,0.0008379,92590.0,92589.0,0.52624]
[1765359147978,0.00016203,92596.0,92595.0,0.0747899]
[1765359148281,0.0693481,92611.0,92610.0,0.0663081]
[1765359150681,0.0743481,92611.0,92610.0,0.0673081]
[1765359150982,0.06355,92611.0,92610.0,0.0673081]
[1765359151573,0.06855,92611.0,92610.0,0.0683081]
[1765359152972,0.06855,92611.0,92610.0,0.4183081]
[1765359153473,0.06855,92611.0,92610.0,0.1983081]
[1765359160485,0.06855,92611.0,92610.0,0.05751]
[1765359165683,0.39855,92611.0,92610.0,0.05751]
[1765359165885,0.06855,92611.0,92610.0,0.05751]
[1765359166589,0.079348,92611.0,92610.0,0.05751]
[1765359169188,0.10329731,92611.0,92610.0,0.05751]
[1765359173894,0.079348,92611.0,92610.0,0.05751]
[1765359177190,0.10335571,92611.0,92610.0,0.05751]
[1765359180992,0.10335571,92611.0,92610.0,0.002]
[1765359181187,0.51335571,92611.0,92610.0,0.002]
[1765359181389,0.51335437,92611.0,92610.0,0.002]
[1765359181594,0.0692191,92602.0,92601.0,0.00016203]
[1765359181893,0.30322547,92602.0,92601.0,0.00016203]
[1765359182408,0.30322547,92602.0,92601.0,0.02717203]
[1765359182697,0.30622547,92602.0,92601.0,0.02817203]
[1765359182897,0.30922547,92602.0,92601.0,0.02817203]
[1765359183987,0.2852191,92602.0,92601.0,0.02817203]
[1765359185788,0.2852191,92602.0,92601.0,0.00116203]
[1765359186596,0.2852191,92602.0,92601.0,0.02817203]
[1765359188093,0.0752191,92602.0,92601.0,0.06718123]
[1765359189794,0.0752191,92602.0,92601.0,0.46718123]
[1765359190001,0.006,92602.0,92601.0,0.48394123]
[1765359190494,0.03591,92602.0,92601.0,0.48394123]
[1765359191091,0.006,92602.0,92601.0,0.57394123]
[1765359191702,0.006,92602.0,92601.0,0.48394123]
[1765359191898,0.06203,92602.0,92601.0,0.46718123]
[1765359192103,0.06203,92602.0,92601.0,0.45638203]